bitfinex/quotes_BTCUSD_20240818
["timestamp","ask_amount","ask_price","bid_price","bid_amount"]
[1724013833014,0.001025,59919.0,59918.0,1.08065121]
[1724013833212,0.001025,59919.0,59918.0,1.59913713]
[1724013833425,0.001025,59919.0,59918.0,1.67593713]
[1724013836456,0.001025,59919.0,59918.0,1.67587928]
[1724013840516,0.001025,59919.0,59918.0,1.15739365]
[1724013840873,0.001025,59919.0,59918.0,1.15739366]
[1724013841664,0.001025,59919.0,59918.0,1.2521482]
[1724013841844,0.001025,59919.0,59918.0,1.08059366]
[1724013842267,0.001025,59919.0,59918.0,1.59907957]
[1724013842659,0.001025,59919.0,59918.0,1.08059366]
[1724013843404,0.001025,59919.0,59918.0,1.04601911]
[1724013843630,0.001025,59919.0,59918.0,1.08059357]
[1724013843838,0.001025,59919.0,59918.0,1.036859]
[1724013844036,0.001025,59919.0,59918.0,1.04601906]
[1724013844244,0.001025,59919.0,59918.0,1.08059387]
[1724013844449,0.001025,59919.0,59918.0,1.59907978]
[1724013844652,0.001025,59919.0,59918.0,1.83273178]
[1724013845295,0.001025,59919.0,59918.0,1.83273716]
[1724013846342,0.001025,59919.0,59918.0,1.82073716]
[1724013846753,0.001025,59919.0,59918.0,1.83473716]
[1724013847164,0.001025,59919.0,59918.0,1.82373716]
[1724013847570,0.001025,59919.0,59918.0,1.8377371]
[1724013847983,0.001025,59919.0,59918.0,1.98753218]
[1724013848097,0.001025,59919.0,59918.0,2.15908672]
[1724013848296,0.001025,59919.0,59918.0,2.00929164]
[1724013848741,0.001025,59919.0,59918.0,2.15908681]
[1724013848939,0.001025,59919.0,59918.0,2.15908646]
[1724013851438,0.001025,59919.0,59918.0,1.97471465]
[1724013851643,0.001025,59919.0,59918.0,1.89206104]
[1724013851964,0.001025,59919.0,59918.0,2.00929179]
[1724013852318,0.001025,59919.0,59918.0,1.99529179]
[1724013852520,0.001025,59919.0,59918.0,1.98129179]
[1724013852720,0.001025,59919.0,59918.0,1.99529179]
[1724013852927,0.001025,59919.0,59918.0,2.00929179]
[1724013853340,0.001025,59919.0,59918.0,1.83773725]
[1724013853779,0.001025,59919.0,59918.0,1.98752164]
[1724013855999,0.001025,59919.0,59918.0,1.94378426]
[1724013856178,0.001025,59919.0,59918.0,1.98752683]
[1724013856588,0.001025,59919.0,59918.0,1.88913038]
[1724013856765,0.001025,59919.0,59918.0,2.06068492]
[1724013856967,0.001025,59919.0,59918.0,2.21219184]
[1724013857144,0.001025,59919.0,59918.0,2.20070176]
[1724013857368,0.001025,59919.0,59918.0,2.29328773]
[1724013857544,0.001025,59919.0,59918.0,1.71650835]
[1724013857770,0.001025,59919.0,59918.0,2.14971969]
[1724013857981,0.001025,59919.0,59918.0,1.99993972]
[1724013858233,0.001025,59919.0,59918.0,1.99994133]
[1724013858547,0.001025,59919.0,59918.0,1.99990052]
[1724013858718,0.001025,59919.0,59918.0,2.14967354]
[1724013858942,0.001025,59919.0,59918.0,2.17145506]
[1724013860828,0.001025,59919.0,59918.0,1.99074006]
[1724013861080,0.001025,59919.0,59918.0,1.999901]
[1724013861330,0.001025,59919.0,59918.0,2.14967369]
[1724013861552,0.001025,59919.0,59918.0,1.999901]
[1724013862293,0.001025,59919.0,59918.0,2.14967812]
[1724013862537,0.001025,59919.0,59918.0,1.999901]
[1724013863000,0.001025,59919.0,59918.0,1.99990109]
[1724013864152,0.001025,59919.0,59918.0,1.91880109]
[1724013864320,0.001025,59919.0,59918.0,1.9874844]
[1724013864517,0.001025,59919.0,59918.0,1.7538324]
[1724013864736,0.143925,59919.0,59918.0,1.07643084]
[1724013864992,0.143925,59919.0,59918.0,1.04184756]
[1724013866035,0.143925,59919.0,59918.0,1.07643148]
[1724013866454,0.143925,59919.0,59918.0,1.07643935]
[1724013867059,0.10424084,59919.0,59918.0,1.07643935]
[1724013867259,0.10424084,59919.0,59918.0,1.24799389]
[1724013867626,0.10424084,59919.0,59918.0,1.2571557]
[1724013867826,0.10424084,59919.0,59918.0,1.24801347]
[1724013870079,0.10424084,59919.0,59918.0,1.24801042]
[1724013870439,0.10424084,59919.0,59918.0,1.25717237]
[1724013870641,0.10506584,59919.0,59918.0,1.24801042]
[1724013871042,0.10506584,59919.0,59918.0,1.25717239]
[1724013871240,0.10506584,59919.0,59918.0,1.24801042]
[1724013872315,0.10506584,59919.0,59918.0,1.248012]
[1724013872565,0.067125,59919.0,59918.0,1.248012]
[1724013873134,0.067125,59919.0,59918.0,1.07645746]
[1724013874163,0.067125,59919.0,59918.0,1.04187354]
[1724013874758,0.067125,59919.0,59918.0,1.07645791]
[1724013877208,0.067125,59919.0,59918.0,1.0764599]
[1724013878119,0.067125,59919.0,59918.0,1.07648347]
[1724013878683,0.067125,59919.0,59918.0,0.98721427]
[1724013878904,0.067125,59919.0,59918.0,1.07649385]
[1724013879420,0.067125,59919.0,59918.0,1.24804839]
[1724013880223,0.067125,59919.0,59918.0,1.24804872]
[1724013881248,0.067125,59919.0,59918.0,1.07649418]
[1724013881859,0.067125,59919.0,59918.0,1.07649489]
[1724013882061,0.067125,59919.0,59918.0,1.04189929]
[1724013882904,0.067125,59919.0,59918.0,0.98721498]
[1724013883078,0.067125,59919.0,59918.0,1.04190013]
[1724013883307,0.067125,59919.0,59918.0,1.04190011]
[1724013885278,0.067125,59919.0,59918.0,1.07649561]
[1724013886083,0.067125,59919.0,59918.0,1.04190011]
[1724013886307,0.067125,59919.0,59918.0,1.07649964]
[1724013886481,0.067125,59919.0,59918.0,1.07649928]
[1724013886866,0.067125,59919.0,59918.0,1.04189975]
[1724013888396,0.067125,59919.0,59918.0,0.80824775]
[1724013888598,0.150025,59919.0,59918.0,0.84284798]
[1724013891358,0.150025,59919.0,59918.0,0.84284998]
[1724013893278,0.067125,59919.0,59918.0,0.84284998]
[1724013894523,0.067125,59919.0,59918.0,0.80825339]
[1724013894724,0.067125,59919.0,59918.0,0.84285517]
[1724013895157,0.067125,59919.0,59918.0,0.80854484]
[1724013895368,0.067125,59919.0,59918.0,0.84286096]
[1724013895760,0.067125,59919.0,59918.0,0.84286744]
[1724013898292,0.067125,59919.0,59918.0,1.00277234]
[1724013898822,0.067125,59919.0,59918.0,0.77394306]
[1724013898999,0.067125,59919.0,59918.0,0.84288867]
[1724013900602,0.067125,59919.0,59918.0,0.84288778]
[1724013901215,0.067125,59919.0,59918.0,0.84288667]
[1724013901543,0.067125,59919.0,59918.0,0.85205615]
[1724013901886,0.067125,59919.0,59918.0,0.85205433]
[1724013902088,0.067125,59919.0,59918.0,0.85205436]
[1724013902271,0.067125,59919.0,59918.0,0.84288485]
[1724013902472,0.067125,59919.0,59918.0,1.08570633]
[1724013903402,0.067125,59919.0,59918.0,1.07653685]
[1724013904673,0.067125,59919.0,59918.0,1.08570507]
[1724013905283,0.067125,59919.0,59918.0,1.25464151]
[1724013905496,0.000825,59919.0,59918.0,1.40457516]
[1724013905707,0.000825,59919.0,59918.0,1.92306183]
[1724013905909,0.000825,59919.0,59918.0,1.40457516]
[1724013906109,0.000825,59919.0,59918.0,1.25464151]
[1724013906546,0.000825,59919.0,59918.0,1.69024071]
[1724013906879,0.000825,59919.0,59918.0,1.23562382]
[1724013907051,0.000825,59919.0,59918.0,1.75410113]
[1724013907225,0.000825,59919.0,59918.0,1.23562382]
[1724013907405,0.000825,59919.0,59918.0,1.75410069]
[1724013907817,0.000825,59919.0,59918.0,1.75409819]
[1724013908712,0.000825,59919.0,59918.0,1.07651975]
[1724013910424,0.000825,59919.0,59918.0,1.04191141]
[1724013910591,0.000825,59919.0,59918.0,1.07652837]
[1724013914562,0.000825,59919.0,59918.0,1.07654268]
[1724013915715,0.062725,59919.0,59918.0,1.07654268]
[1724013917038,0.062725,59919.0,59918.0,1.60420201]
[1724013917237,0.062725,59919.0,59918.0,1.7541317]
[1724013917441,0.062725,59919.0,59918.0,1.74496201]
[1724013917989,0.062725,59919.0,59918.0,1.91656823]
[1724013918238,0.000825,59919.0,59918.0,1.82724552]
[1724013918414,0.000825,59919.0,59918.0,2.00513363]
[1724013919474,0.000825,59919.0,59918.0,1.95013804]
[1724013919682,0.000825,59919.0,59918.0,2.00513359]
[1724013920002,0.000825,59919.0,59918.0,2.00513358]
[1724013923208,0.000825,59919.0,59918.0,2.00513367]
[1724013923618,0.000825,59919.0,59918.0,2.08623367]
[1724013923820,0.000825,59919.0,59918.0,1.94282799]
[1724013923999,0.000825,59919.0,59918.0,2.23118314]
[1724013924263,0.000825,59919.0,59918.0,1.99753114]
[1724013925575,0.000825,59919.0,59918.0,2.23118314]
[1724013926315,0.000825,59919.0,59918.0,1.99753114]
[1724013926692,0.000825,59919.0,59918.0,1.99750543]
[1724013928015,0.000825,59919.0,59918.0,2.23115743]
[1724013928224,0.000825,59919.0,59918.0,1.99750543]
[1724013929919,0.000825,59919.0,59918.0,2.23115743]
[1724013930358,0.000825,59919.0,59918.0,1.99750543]
[1724013930562,0.000825,59919.0,59918.0,2.23115743]
[1724013930944,0.000825,59919.0,59918.0,1.99750543]
[1724013931812,0.000825,59919.0,59918.0,1.95371679]
[1724013932025,0.000825,59919.0,59918.0,1.99749342]
[1724013932227,0.000825,59919.0,59918.0,2.13267066]
[1724013932427,0.000825,59919.0,59918.0,1.99750633]
[1724013933755,0.000825,59919.0,59918.0,1.99750661]
[1724013934547,0.000825,59919.0,59918.0,2.31980761]
[1724013934748,0.000825,59919.0,59918.0,2.08615561]
[1724013935174,0.000825,59919.0,59918.0,1.93620661]
[1724013935959,0.000825,59919.0,59918.0,1.90159242]
[1724013936162,0.000825,59919.0,59918.0,2.16985705]
[1724013936608,0.000825,59919.0,59918.0,2.16985449]
[1724013937209,0.000825,59919.0,59918.0,2.31979728]
[1724013938620,0.000825,59919.0,59918.0,2.16985449]
[1724013939394,0.000825,59919.0,59918.0,2.14185449]
[1724013939624,0.000825,59919.0,59918.0,2.15585449]
[1724013939823,0.000825,59919.0,59918.0,2.16985449]
[1724013940074,0.000825,59919.0,59918.0,2.09169056]
[1724013940273,0.000825,59919.0,59918.0,2.15586614]
[1724013940486,0.000825,59919.0,59918.0,2.16986614]
[1724013940943,0.000825,59919.0,59918.0,2.64207268]
[1724013941148,1e-08,59919.0,59918.0,2.78083694]
[1724013941390,1e-08,59919.0,59918.0,2.66097268]
[1724013941593,1e-08,59919.0,59918.0,2.56118494]
[1724013941803,1e-08,59919.0,59918.0,2.50842068]
[1724013942024,1e-08,59919.0,59918.0,2.50069446]
[1724013942238,1e-08,59919.0,59918.0,2.51469446]
[1724013942364,1e-08,59919.0,59918.0,2.56745872]
[1724013942575,1e-08,59919.0,59918.0,2.49442068]
[1724013942804,1e-08,59919.0,59918.0,2.48042068]
[1724013942971,1e-08,59919.0,59918.0,2.50842068]
[1724013944617,1e-08,59919.0,59918.0,2.50840082]
[1724013944988,1e-08,59919.0,59918.0,2.508426]
[1724013945812,1e-08,59919.0,59918.0,2.50431404]
[1724013946014,1e-08,59919.0,59918.0,2.66348521]
[1724013946226,1e-08,59919.0,59918.0,2.44231404]
[1724013946433,1e-08,59919.0,59918.0,2.50431404]
[1724013946637,1e-08,59919.0,59918.0,2.72546403]
[1724013947412,1e-08,59919.0,59918.0,2.50431404]
[1724013947518,1e-08,59919.0,59918.0,2.72544464]
[1724013947722,1e-08,59919.0,59918.0,2.50431404]
[1724013947918,1e-08,59919.0,59918.0,2.72544376]
[1724013949890,1e-08,59919.0,59918.0,2.72544676]
[1724013950523,1e-08,59919.0,59918.0,2.72541839]
[1724013951362,0.00825,59920.0,59919.0,0.58912]
[1724013951564,0.00825,59920.0,59919.0,2.20350137]
[1724013951766,7.058e-05,59927.0,59926.0,0.903773]
[1724013952002,7.058e-05,59927.0,59926.0,2.75694058]
[1724013952212,7.058e-05,59927.0,59926.0,2.159327]
[1724013952409,7.058e-05,59927.0,59926.0,2.41198154]
[1724013952617,7.058e-05,59927.0,59926.0,2.47398154]
[1724013952862,7.058e-05,59927.0,59926.0,1.95557723]
[1724013953075,7.058e-05,59927.0,59926.0,2.18919823]
[1724013953295,7.058e-05,59927.0,59926.0,2.20319823]
[1724013953493,7.058e-05,59927.0,59926.0,2.26149899]
[1724013953697,7.058e-05,59927.0,59926.0,2.22716493]
[1724013953900,7.058e-05,59927.0,59926.0,2.26145763]
[1724013954744,7.058e-05,59927.0,59926.0,2.10469187]
[1724013954952,7.058e-05,59927.0,59926.0,1.97407014]
[1724013955121,7.058e-05,59927.0,59926.0,2.30637595]
[1724013955332,7.058e-05,59927.0,59926.0,1.50787387]
[1724013955533,7.058e-05,59927.0,59926.0,1.73848162]
[1724013955731,7.058e-05,59927.0,59926.0,1.58897387]
[1724013955941,1e-08,59928.0,59927.0,0.817659]
[1724013956159,1e-08,59928.0,59927.0,1.45790024]
[1724013956516,0.07570001,59928.0,59927.0,1.4487389]
[1724013956721,0.13840001,59928.0,59927.0,1.4487389]
[1724013957331,0.0002,59939.0,59935.0,0.1439]
[1724013957505,0.0002,59939.0,59938.0,0.432461]
[1724013957714,0.0002,59939.0,59938.0,1.72059937]
[1724013957923,0.0002,59939.0,59938.0,1.63985192]
[1724013958127,0.0002,59939.0,59938.0,1.81140646]
[1724013959062,0.0002,59939.0,59938.0,1.82540646]
[1724013959347,0.0002,59939.0,59938.0,2.04498046]
[1724013959552,0.0002,59939.0,59938.0,2.04491525]
[1724013959756,0.0002,59939.0,59938.0,1.98107053]
[1724013959928,0.0002,59939.0,59938.0,2.04484734]
[1724013960152,0.0002,59939.0,59938.0,2.05884734]
[1724013960356,0.0002,59939.0,59938.0,2.06207534]
[1724013960472,0.0002,59939.0,59938.0,1.32626296]
[1724013960672,0.0002,59939.0,59938.0,1.43979238]
[1724013960882,0.0002,59939.0,59938.0,1.34026296]
[1724013961541,0.0002,59939.0,59938.0,1.41490458]
[1724013961887,0.0642,59939.0,59938.0,1.34026296]
[1724013962116,0.0002,59939.0,59938.0,1.37453362]
[1724013962313,0.00908343,59940.0,59939.0,0.817495]
[1724013962590,0.00908343,59940.0,59939.0,1.36604111]
[1724013963636,0.00908343,59940.0,59939.0,1.36604536]
[1724013964250,0.00908343,59940.0,59939.0,1.46864709]
[1724013964862,0.00908343,59940.0,59939.0,1.47287509]
[1724013965405,0.00908343,59940.0,59939.0,1.10268483]
[1724013966176,0.00908343,59940.0,59939.0,1.39827096]
[1724013966855,0.00908343,59940.0,59939.0,1.3779154]
[1724013967086,0.00908343,59940.0,59939.0,1.3982699]
[1724013967444,0.00908343,59940.0,59939.0,1.84413292]
[1724013967850,0.00908343,59940.0,59939.0,1.78950238]
[1724013968048,0.00908343,59940.0,59939.0,1.84413292]
[1724013968277,0.00908343,59940.0,59939.0,1.87872641]
[1724013968931,0.00908343,59940.0,59939.0,1.77931517]
[1724013970303,0.00908343,59940.0,59939.0,1.95981279]
[1724013971131,1e-08,59940.0,59939.0,1.95981279]
[1724013972482,1e-08,59940.0,59939.0,1.79297417]
[1724013972696,1e-08,59940.0,59939.0,1.88221654]
[1724013974258,1e-08,59940.0,59939.0,1.78281892]
[1724013974466,1e-08,59940.0,59939.0,1.88221654]
[1724013975353,0.00082501,59940.0,59939.0,1.78281892]
[1724013975791,0.00082501,59940.0,59939.0,1.723212]
[1724013976826,0.00082501,59940.0,59939.0,1.68860615]
[1724013977034,0.00082501,59940.0,59939.0,1.7232194]
[1724013977877,0.00082501,59940.0,59939.0,1.25364277]
[1724013978090,0.00082501,59940.0,59939.0,1.688607]
[1724013978321,0.116754,59955.0,59939.0,1.688607]
[1724013978322,0.116724,59971.0,59952.0,0.001]
[1724013978527,0.116724,59971.0,59944.0,0.237549]
[1724013978528,0.47513,59973.0,59972.0,0.351163]
[1724013978529,0.00825,59973.0,59972.0,0.351163]
[1724013978778,0.00825,59973.0,59972.0,1.113189]
[1724013979004,0.00825,59973.0,59972.0,1.35289182]
[1724013979219,0.00825,59973.0,59972.0,1.86176976]
[1724013979447,0.00825,59973.0,59972.0,1.90151591]
[1724013979661,0.00825,59973.0,59972.0,2.25108005]
[1724013979878,0.00825,59973.0,59972.0,1.99707412]
[1724013980096,0.00825,59973.0,59972.0,1.55748428]
[1724013980320,0.00825,59973.0,59972.0,1.42512143]
[1724013980526,0.00825,59973.0,59972.0,1.12294577]
[1724013981157,0.00825,59973.0,59972.0,1.17244727]
[1724013981372,0.00825,59973.0,59972.0,0.03432461]
[1724013981591,0.00825,59973.0,59972.0,0.130721]
[1724013981592,0.08735,59973.0,59972.0,0.130721]
[1724013981803,0.08735,59973.0,59972.0,0.364163]
[1724013982439,0.08735,59973.0,59972.0,0.354391]
[1724013982646,0.08735,59973.0,59972.0,0.368391]
[1724013982870,0.08735,59973.0,59972.0,0.382391]
[1724013983077,0.08735,59973.0,59972.0,0.354391]
[1724013983486,0.08735,59973.0,59972.0,0.131949]
[1724013983664,0.08735,59973.0,59972.0,0.4019316]
[1724013983912,0.08735,59973.0,59972.0,0.598833]
[1724013984329,0.08735,59973.0,59972.0,0.610833]
[1724013984538,0.08735,59973.0,59972.0,0.599833]
[1724013984746,0.08735,59973.0,59972.0,0.587833]
[1724013985181,0.08735,59973.0,59972.0,0.379391]
[1724013985405,0.08735,59973.0,59972.0,0.368391]
[1724013985823,0.08735,59973.0,59972.0,0.366391]
[1724013986030,0.08735,59973.0,59972.0,0.6711619]
[1724013986254,0.08735,59973.0,59972.0,0.6841619]
[1724013986895,0.00825,59973.0,59972.0,0.6841619]
[1724013987517,0.00825,59973.0,59972.0,0.378391]
[1724013987692,0.00825,59973.0,59972.0,0.365391]
[1724013987900,0.00825,59973.0,59972.0,0.134949]
[1724013988268,0.00825,59973.0,59972.0,0.004228]
[1724013988475,0.124969,59973.0,59972.0,0.016228]
[1724013988794,0.124969,59973.0,59972.0,0.017228]
[1724013988795,0.437507,59973.0,59972.0,0.017228]
[1724013988999,0.5114556,59973.0,59972.0,0.017228]
[1724013989297,0.731245,59973.0,59972.0,0.017228]
[1724013989495,0.731245,59973.0,59972.0,0.031228]
[1724013990913,0.754245,59973.0,59972.0,0.018228]
[1724013991116,0.987683,59973.0,59972.0,0.018228]
[1724013991332,0.987683,59973.0,59972.0,0.016228]
[1724013991333,0.754245,59973.0,59972.0,0.016228]
[1724013991539,0.754245,59973.0,59972.0,0.004228]
[1724013992359,0.755245,59973.0,59972.0,0.004228]
[1724013992821,0.754245,59973.0,59972.0,0.004228]
[1724013994687,0.755245,59973.0,59972.0,0.004228]
[1724013995091,0.754245,59973.0,59972.0,0.004228]
[1724013996376,0.755245,59973.0,59972.0,0.004228]
[1724013998512,0.987683,59973.0,59972.0,0.004228]
[1724013998715,1.1109201,59973.0,59972.0,0.004228]
[1724013998912,1.1129201,59973.0,59972.0,0.004228]
[1724013999113,1.4463581,59973.0,59972.0,0.004228]
[1724013999316,1.2139201,59973.0,59972.0,0.004228]
[1724013999650,1.090683,59973.0,59972.0,0.004228]
[1724014000281,1.324121,59973.0,59972.0,0.004228]
[1724014000495,1.087683,59973.0,59972.0,0.004228]
[1724014000676,1.088683,59973.0,59972.0,0.004228]
[1724014001187,1.087683,59973.0,59972.0,0.004228]
[1724014001342,1.090683,59973.0,59972.0,0.004228]
[1724014001557,1.087683,59973.0,59972.0,0.004228]
[1724014002110,1.088683,59973.0,59972.0,0.004228]
[1724014002517,1.087683,59973.0,59972.0,0.004228]
[1724014004594,1.090683,59973.0,59972.0,0.004228]
[1724014004955,1.324121,59973.0,59972.0,0.004228]
[1724014005237,1.4343143,59973.0,59972.0,0.004228]
[1724014006911,1.4653143,59973.0,59972.0,0.004228]
[1724014007116,1.4693143,59973.0,59972.0,0.004228]
[1724014007320,1.9695443,59973.0,59972.0,0.004228]
[1724014007949,2.00980011,59973.0,59972.0,0.004228]
[1724014008146,1.89560681,59973.0,59972.0,0.004228]
[1724014008507,1.857351,59973.0,59972.0,0.005228]
[1724014008645,1.864351,59973.0,59972.0,0.006228]
[1724014008845,1.865351,59973.0,59972.0,0.006228]
[1724014011765,2.298789,59973.0,59972.0,0.006228]
[1724014012444,2.33904377,59973.0,59972.0,0.006228]
[1724014013622,2.298789,59973.0,59972.0,0.006228]
[1724014014022,2.33904485,59973.0,59972.0,0.006228]
[1724014014380,2.33604485,59973.0,59972.0,0.006228]
[1724014014511,2.51059939,59973.0,59972.0,0.006228]
[1724014015310,1.050696,59960.0,59959.0,0.0009064]
[1724014015532,1.814126,59960.0,59959.0,0.0009064]
[1724014017392,1.814126,59960.0,59959.0,0.0039064]
[1724014017722,1.82432869,59960.0,59959.0,0.0039064]
[1724014017931,1.82432869,59960.0,59959.0,0.0059064]
[1724014018505,1.9841764,59960.0,59959.0,0.0059064]
[1724014021294,1.98677493,59960.0,59959.0,0.0059064]
[1724014022211,1.98377493,59960.0,59959.0,0.0059064]
[1724014022434,1.98377493,59960.0,59959.0,0.0029064]
[1724014022435,1.82492722,59960.0,59959.0,0.0029064]
[1724014022674,1.82392722,59960.0,59959.0,0.0029064]
[1724014023772,1.82692722,59960.0,59959.0,0.0009064]
[1724014024005,1.83092722,59960.0,59959.0,0.0009064]
[1724014028972,1.75402722,59960.0,59959.0,0.0009064]
[1724014029809,1.09054853,59960.0,59959.0,0.0009064]
[1724014030008,1.09054853,59960.0,59959.0,0.0769064]
[1724014030381,1.09054853,59960.0,59959.0,0.0009064]
[1724014030785,1.08354853,59960.0,59959.0,0.0009064]
[1724014031196,1.08754853,59960.0,59959.0,0.0009064]
[1724014031393,1.32103653,59960.0,59959.0,0.0009064]
[1724014031597,1.09154853,59960.0,59959.0,0.0009064]
[1724014031759,1.11454853,59960.0,59959.0,0.0009064]
[1724014031968,1.10954853,59960.0,59959.0,0.0009064]
[1724014032325,1.11154853,59960.0,59959.0,0.0009064]
[1724014032995,1.10854853,59960.0,59959.0,0.0009064]
[1724014033234,1.34403653,59960.0,59959.0,0.0009064]
[1724014033422,1.54856764,59960.0,59959.0,0.0009064]
[1724014033603,1.54556764,59960.0,59959.0,0.0009064]
[1724014033803,1.54356764,59960.0,59959.0,0.0009064]
[1724014034012,1.54556764,59960.0,59959.0,0.0009064]
[1724014034214,1.54456764,59960.0,59959.0,0.0009064]
[1724014034754,1.54556764,59960.0,59959.0,0.0009064]
[1724014034883,1.54739164,59960.0,59959.0,0.0009064]
[1724014035087,1.54839164,59960.0,59959.0,0.0009064]
[1724014035337,1.54539164,59960.0,59959.0,0.0009064]
[1724014036235,1.54439164,59960.0,59959.0,0.0009064]
[1724014036433,1.54539164,59960.0,59959.0,0.0009064]
[1724014036637,1.40426053,59960.0,59959.0,0.0009064]
[1724014037040,1.40326053,59960.0,59959.0,0.0009064]
[1724014037458,1.40526053,59960.0,59959.0,0.0009064]
[1724014037812,1.40326053,59960.0,59959.0,0.0009064]
[1724014039269,1.40426053,59960.0,59959.0,0.0009064]
[1724014042034,1.34386053,59960.0,59959.0,0.0009064]
[1724014048619,1.42476053,59960.0,59959.0,0.0009064]
[1724014049644,1.58226404,59960.0,59959.0,0.0009064]
[1724014050255,1.68226404,59960.0,59959.0,0.0009064]
[1724014050460,1.72224528,59960.0,59959.0,0.0009064]
[1724014050703,1.80344528,59960.0,59959.0,0.0009064]
[1724014053285,2.10093328,59960.0,59959.0,0.0009064]
[1724014053692,2.09993328,59960.0,59959.0,0.0009064]
[1724014054093,2.10093328,59960.0,59959.0,0.0009064]
[1724014054286,2.33642128,59960.0,59959.0,0.0009064]
[1724014054528,1.050943,59946.0,59945.0,0.51177509]
[1724014054724,1.736273,59946.0,59945.0,0.51177509]
[1724014054925,1.736273,59946.0,59940.0,0.0785]
[1724014054926,0.412407,59941.0,59940.0,0.0785]
[1724014055127,0.583915,59940.0,59938.0,0.0009075]
[1724014055323,1.317711,59940.0,59938.0,0.0009075]
[1724014055584,1.340711,59940.0,59938.0,0.0009075]
[1724014055781,1.403711,59940.0,59938.0,0.0009075]
[1724014056202,1.404711,59940.0,59939.0,0.0109075]
[1724014056396,1.341711,59940.0,59939.0,0.0109075]
[1724014057264,1.341711,59940.0,59939.0,0.0894075]
[1724014057880,1.340711,59940.0,59939.0,0.0794075]
[1724014058053,1.341711,59940.0,59939.0,0.0894075]
[1724014058280,1.341711,59940.0,59939.0,0.0944075]
[1724014059043,1.340711,59940.0,59939.0,0.0844075]
[1724014059255,1.340711,59940.0,59939.0,0.0884075]
[1724014064367,1.340711,59940.0,59939.0,0.0099075]
[1724014070819,1.340711,59940.0,59939.0,0.0731075]
[1724014073443,1.340711,59940.0,59939.0,0.0099075]
[1724014078568,1.421711,59940.0,59939.0,0.0099075]
[1724014081504,1.46174746,59940.0,59939.0,0.0099075]
[1724014081682,1.421711,59940.0,59939.0,0.0099075]
[1724014082079,1.488011,59940.0,59939.0,0.0099075]
[1724014082313,1.5280481,59940.0,59939.0,0.0099075]
[1724014083721,1.3807481,59940.0,59939.0,0.0099075]
[1724014084136,1.421711,59940.0,59939.0,0.0099075]
[1724014084840,1.421711,59940.0,59939.0,0.0914075]
[1724014084841,0.617013,59940.0,59939.0,0.0914075]
[1724014085042,0.850579,59940.0,59939.0,0.11178667]
[1724014085465,0.617013,59940.0,59939.0,0.11178667]
[1724014087263,0.617013,59940.0,59939.0,0.0914075]
[1724014087671,0.850579,59940.0,59939.0,0.0914075]
[1724014088071,0.50023,59940.0,59939.0,0.1569075]
[1724014088277,0.50023,59940.0,59939.0,0.17728564]
[1724014088863,0.617013,59940.0,59939.0,0.17728564]
[1724014091522,0.617013,59940.0,59939.0,0.17728412]
[1724014094020,0.850579,59940.0,59939.0,0.11178412]
[1724014094429,0.850579,59940.0,59939.0,0.11178427]
[1724014095786,0.850579,59940.0,59939.0,0.0914075]
[1724014095983,0.850579,59940.0,59939.0,0.11178369]
[1724014096408,0.850579,59940.0,59939.0,0.1117834]
[1724014096612,0.931579,59940.0,59939.0,0.0302834]
[1724014097175,1.165145,59940.0,59939.0,0.0302834]
[1724014097582,1.165145,59940.0,59939.0,0.03028515]
[1724014097782,1.165145,59940.0,59939.0,0.0099075]
[1724014097987,1.165145,59940.0,59939.0,0.03028555]
[1724014098365,1.165145,59940.0,59939.0,0.03028568]
[1724014098576,1.165145,59940.0,59939.0,0.0099075]
[1724014098776,1.165145,59940.0,59939.0,0.03028574]
[1724014100077,1.165145,59940.0,59939.0,0.0099075]
[1724014100236,1.165145,59940.0,59939.0,0.03028608]
[1724014104105,1.165145,59940.0,59939.0,0.0099075]
[1724014104309,1.165145,59940.0,59939.0,0.03028484]
[1724014107166,1.084145,59940.0,59939.0,0.11068495]
[1724014107501,0.50023,59940.0,59939.0,0.17368495]
[1724014108436,0.50023,59940.0,59939.0,0.17368347]
[1724014108861,0.50023,59940.0,59939.0,0.1533075]
[1724014108862,0.617013,59940.0,59939.0,0.1533075]
[1724014109058,0.617013,59940.0,59939.0,0.16868349]
[1724014109460,0.618013,59940.0,59939.0,0.17668349]
[1724014109666,0.618013,59940.0,59939.0,0.17268349]
[1724014109868,0.617013,59940.0,59939.0,0.16468349]
[1724014110161,0.618013,59940.0,59939.0,0.17068349]
[1724014110493,0.852579,59940.0,59939.0,0.17768349]
[1724014110702,0.851579,59940.0,59939.0,0.17168349]
[1724014110859,0.851579,59940.0,59939.0,0.17968349]
[1724014111073,0.852579,59940.0,59939.0,0.17968349]
[1724014111315,0.852579,59940.0,59939.0,0.11668349]
[1724014115597,1.147245,59940.0,59939.0,0.03628349]
[1724014115795,1.486311,59940.0,59939.0,0.0159075]
[1724014116002,1.6325745,59940.0,59939.0,0.0159075]
[1724014116198,1.67266562,59940.0,59939.0,0.0159075]
[1724014116432,1.52640212,59940.0,59939.0,0.0159075]
[1724014116917,1.52540212,59940.0,59939.0,0.0079075]
[1724014117045,1.52440212,59940.0,59939.0,0.0059075]
[1724014117264,1.484311,59940.0,59939.0,0.0099075]
[1724014126771,1.340711,59940.0,59939.0,0.0099075]
[1724014127733,0.850579,59940.0,59939.0,0.0099075]
[1724014127992,0.850579,59940.0,59939.0,0.03028265]
[1724014128506,0.850579,59940.0,59939.0,0.0099075]
[1724014128734,0.850579,59940.0,59939.0,0.03028248]
[1724014128973,0.915179,59940.0,59939.0,0.03028248]
[1724014129212,0.915179,59940.0,59939.0,0.0099075]
[1724014129213,0.850579,59940.0,59939.0,0.0099075]
[1724014129689,0.850579,59940.0,59939.0,0.0884075]
[1724014133388,0.850579,59940.0,59939.0,0.1511075]
[1724014136718,0.617013,59940.0,59939.0,0.1511075]
[1724014136924,0.617013,59940.0,59939.0,0.17130234]
[1724014137130,0.617013,59940.0,59939.0,0.1916776]
[1724014137534,0.50023,59940.0,59939.0,0.1916776]
[1724014138166,0.617013,59940.0,59939.0,0.17148276]
[1724014138981,0.931579,59940.0,59939.0,0.03028276]
[1724014139099,0.931579,59940.0,59939.0,0.0099075]
[1724014139309,0.931579,59940.0,59939.0,0.03028248]
[1724014139310,0.850579,59940.0,59939.0,0.03028248]
[1724014139510,0.850579,59940.0,59939.0,0.03028286]
[1724014141027,1.421711,59940.0,59939.0,0.03028286]